bitfinex-derivatives/quotes_SOLF0:USTF0_20251108
["timestamp","ask_amount","ask_price","bid_price","bid_amount"]
[1762623585142,2.38535239,157.24,157.23,0.04076052]
[1762623586340,4.97535239,157.24,157.23,0.04076052]
[1762623596465,2.59,157.24,157.23,0.04076052]
[1762623604667,5.7254,157.25,157.23,0.04076052]
[1762623604668,0.04173132,157.26,157.23,0.04076052]
[1762623604968,0.04173132,157.26,157.23,8.92676052]
[1762623605169,0.04173132,157.26,157.24,3.16]
[1762623605563,0.04173132,157.26,157.24,8.8856]
[1762623605769,0.04173132,157.26,157.25,3.16]
[1762623614480,0.04173132,157.26,157.24,5.7256]
[1762623614481,2.58,157.29,157.24,3.16]
[1762623614870,2.58,157.3,157.27,3.16]
[1762623615075,2.58,157.29,157.26,8.8849]
[1762623615480,2.62339259,157.29,157.26,8.92554242]
[1762623616380,2.62339259,157.29,157.26,3.20064242]
[1762623616678,2.62339259,157.29,157.26,0.04064242]
[1762623616679,2.58,157.28,157.26,0.04064242]
[1762623617184,2.58,157.28,157.26,3.20064242]
[1762623617683,2.58,157.28,157.26,0.04064242]
[1762623618890,8.3043,157.28,157.26,0.04064242]
[1762623619074,2.58,157.27,157.26,0.04064242]
[1762623623185,3.76766514,157.29,157.26,3.20064242]
[1762623623979,0.04339259,157.29,157.26,3.20064242]
[1762623624380,2.62339259,157.29,157.27,5.7245]
[1762623624989,2.62339259,157.29,157.26,3.20064242]
[1762623626090,8.34729259,157.29,157.26,3.20064242]
[1762623626390,2.58,157.28,157.26,3.20064242]
[1762623626980,2.58,157.28,157.26,8.92554242]
[1762623627193,2.62339259,157.29,157.26,8.92554242]
[1762623628080,2.62339259,157.29,157.27,3.16]
[1762623628877,2.62339259,157.29,157.26,8.92554242]
[1762623629591,0.04339259,157.29,157.27,8.8845]
[1762623629785,0.04339259,157.29,157.28,3.16]
[1762623633589,2.58,157.37,157.3,3.24]
[1762623634489,2.58,157.36,157.32,3.24]
[1762623634691,2.62900671,157.36,157.32,3.2854609]
[1762623635194,0.04900671,157.36,157.33,3.24]
[1762623635394,2.62900671,157.36,157.33,3.24]
[1762623635689,0.04900671,157.36,157.34,3.24]
[1762623637596,2.62900671,157.36,157.33,8.9623]
[1762623638197,2.62900671,157.36,157.32,0.0454609]
[1762623638691,2.62900671,157.36,157.32,3.2854609]
[1762623640497,2.58,157.35,157.32,0.0454609]
[1762623640698,2.58,157.35,157.32,3.2854609]
[1762623640998,2.58,157.35,157.32,9.0081609]
[1762623642292,2.62900671,157.36,157.33,3.24]
[1762623642494,0.04900671,157.36,157.34,3.24]
[1762623646597,2.62900671,157.36,157.34,3.24]
[1762623657302,0.04900671,157.36,157.34,3.24]
[1762623658306,2.42893163,157.36,157.34,3.24]
[1762623659008,5.00893163,157.36,157.34,3.24]
[1762623660309,32.56,157.4,157.35,3.06]
[1762623660508,26.97613611,157.48,157.35,3.06]
[1762623660509,5.00992492,157.42,157.35,3.06]
[1762623660714,2.63,157.42,157.36,3.06]
[1762623661011,2.63,157.42,157.38,3.06]
[1762623661313,2.67175066,157.42,157.38,3.10280902]
[1762623661505,5.00992492,157.41,157.38,3.10280902]
[1762623664514,0.04175066,157.42,157.38,3.10280902]
[1762623666212,0.04175066,157.42,157.41,2.99]
[1762623666414,2.37992492,157.48,157.42,2.99]
[1762623666719,2.63,157.47,157.44,2.99]
[1762623667318,2.67205815,157.47,157.44,3.03749332]
[1762623667515,2.67205815,157.47,157.44,8.75579332]
[1762623669320,2.67205815,157.47,157.44,5.76579332]
[1762623669513,2.67205815,157.47,157.44,8.75579332]
[1762623669713,2.67205815,157.47,157.45,2.99]
[1762623670318,2.67205815,157.47,157.44,3.03749332]
[1762623671228,2.37992492,157.46,157.44,3.03749332]
[1762623672432,5.00992492,157.46,157.44,3.03749332]
[1762623672833,2.37992492,157.46,157.44,3.03749332]
[1762623673533,2.67205815,157.47,157.44,3.03749332]
[1762623673831,2.63,157.45,157.44,0.04749332]
[1762623674526,5.00992492,157.46,157.44,0.04749332]
[1762623675034,10.72772492,157.46,157.44,3.03749332]
[1762623675532,2.67205815,157.47,157.44,3.03749332]
[1762623675732,5.05198307,157.47,157.44,3.03749332]
[1762623676241,0.04205815,157.47,157.44,3.03749332]
[1762623677933,0.04205815,157.47,157.45,5.718]
[1762623678232,0.04205815,157.47,157.46,2.99]
[1762623683535,5.00992492,157.54,157.49,2.99]
[1762623683835,5.04992492,157.5,157.45,2.99]
[1762623684042,5.04992492,157.5,157.46,2.99]
[1762623684441,5.09117666,157.5,157.46,3.03241113]
[1762623684938,10.80747666,157.5,157.46,3.03241113]
[1762623685635,2.67,157.49,157.46,0.04241113]
[1762623685835,2.67,157.49,157.46,3.03241113]
[1762623686035,2.67,157.47,157.46,0.04241113]
[1762623687242,2.37992492,157.48,157.46,3.03241113]
[1762623688245,5.04992492,157.48,157.46,0.04241113]
[1762623689545,2.67,157.47,157.46,0.04241113]
[1762623692039,2.66,157.45,157.41,3.03]
[1762623692245,2.37992492,157.44,157.41,3.03]
[1762623692547,5.03992492,157.44,157.41,3.03]
[1762623693042,5.08635368,157.44,157.41,3.07515657]
[1762623693352,2.42635368,157.44,157.41,3.07515657]
[1762623695741,5.08635368,157.44,157.41,3.07515657]
[1762623697439,2.66,157.43,157.41,0.04515657]
[1762623697744,5.03992492,157.42,157.41,0.04515657]
[1762623698340,2.66,157.42,157.41,0.04515657]
[1762623709249,2.66,157.42,157.35,5.86711606]
[1762623709250,5.7204,157.39,157.35,5.86711606]
[1762623709458,2.66,157.38,157.35,3.14]
[1762623709957,2.66,157.38,157.36,3.14]
[1762623711056,2.66,157.36,157.35,0.04800922]
[1762623711358,2.66,157.38,157.35,3.18800922]
[1762623712958,8.3806,157.38,157.35,3.18800922]
[1762623716949,2.66,157.38,157.35,8.90960922]
[1762623718159,0.04077977,157.39,157.37,3.14]
[1762623718962,0.04077977,157.39,157.37,8.8609]
[1762623719165,8.3784,157.44,157.38,3.14]
[1762623719968,8.3784,157.44,157.41,3.14]
[1762623720166,0.04790653,157.43,157.41,3.14]
[1762623721364,0.04790653,157.43,157.42,3.22]
[1762623731374,2.71790653,157.43,157.4,3.22]
[1762623731961,2.67,157.42,157.39,0.04831436]
[1762623732161,2.67,157.42,157.39,3.26831436]
[1762623732361,0.04790653,157.43,157.39,3.26831436]
[1762623732567,0.04790653,157.43,157.42,3.22]
[1762623733268,2.67,157.49,157.45,3.22]
[1762623734077,2.67,157.49,157.46,3.22]
[1762623734276,2.71125779,157.49,157.46,3.2627005]
[1762623734671,8.42785779,157.49,157.46,3.2627005]
[1762623738480,2.71125779,157.49,157.46,3.2627005]
[1762623739980,2.71125779,157.49,157.47,3.22]
[1762623740372,0.04125779,157.49,157.47,3.22]
[1762623741479,2.71125779,157.49,157.47,3.22]
[1762623742371,0.04125779,157.49,157.47,3.22]
[1762623743279,0.04125779,157.49,157.47,8.9372]
[1762623743481,0.04125779,157.49,157.48,3.22]
[1762623744483,2.67,157.53,157.48,3.22]
[1762623744679,2.67,157.52,157.48,3.22]
[1762623744867,2.67,157.5,157.46,3.22]
[1762623745071,2.67,157.52,157.46,3.22]
[1762623745273,0.03943275,157.51,157.46,3.22]
[1762623745473,0.03943275,157.51,157.48,3.22]
[1762623746671,0.03943275,157.51,157.48,8.9369]
[1762623746876,2.70943275,157.51,157.48,3.22]
[1762623747878,2.67,157.5,157.47,0.04730052]
[1762623748980,12.10197908,157.5,157.47,0.04730052]
[1762623749285,2.67,157.49,157.47,0.04730052]
[1762623749875,2.67,157.48,157.47,0.04730052]
[1762623761899,2.67,157.5,157.47,3.18730052]
[1762623762803,0.03943275,157.51,157.48,3.14]
[1762623764006,0.03943275,157.51,157.5,2.95]
[1762623764998,2.69943275,157.51,157.47,0.04730052]
[1762623765202,8.3767,157.49,157.47,0.04730052]
[1762623765409,3.71567908,157.5,157.42,7.81006405]
[1762623765410,2.66,157.48,157.42,8.79140476]
[1762623765803,2.66,157.48,157.43,2.95]
[1762623766399,2.66,157.46,157.43,2.95]
[1762623766605,2.66,157.46,157.44,0.04063329]
[1762623768114,2.66,157.45,157.44,0.04063329]
[1762623777322,2.66,157.43,157.39,2.95]
[1762623778220,2.70863824,157.43,157.39,2.9940839]
[1762623780612,0.04863824,157.43,157.4,2.95]
[1762623781212,63.16,157.49,157.42,2.95]
[1762623781213,65.82,157.49,157.42,2.95]
[1762623781420,63.16,157.49,157.42,2.95]
[1762623781621,63.16,157.49,157.43,2.95]
[1762623781921,65.82,157.49,157.43,2.95]
[1762623782323,2.70158631,157.48,157.45,2.95]
[1762623782937,2.66,157.47,157.44,2.99870414]
[1762623788730,2.66,157.47,157.44,8.71690414]
[1762623789031,2.66,157.47,157.45,2.95]
[1762623789538,0.04158631,157.48,157.45,8.6679]
[1762623789727,0.04158631,157.48,157.46,2.95]
[1762623790028,0.04158631,157.48,157.44,0.04870414]
[1762623790029,2.70158631,157.48,157.44,2.99870414]
[1762623790737,2.66,157.46,157.44,0.04870414]
[1762623791134,2.37809923,157.47,157.44,2.99870414]
[1762623791837,0.04158631,157.48,157.45,2.95]
[1762623793035,0.04158631,157.48,157.46,2.95]
[1762623793538,2.70158631,157.48,157.46,2.95]
[1762623794641,0.04158631,157.48,157.46,8.6676]
[1762623795538,2.70158631,157.48,157.46,8.6676]
[1762623795840,0.04158631,157.48,157.46,8.6676]
[1762623797042,0.04158631,157.48,157.46,2.95]
[1762623797343,2.70158631,157.48,157.45,2.95]
[1762623798038,2.66,157.47,157.44,2.99870414]
[1762623798343,2.70158631,157.48,157.44,2.99870414]
[1762623799942,2.70158631,157.48,157.44,8.71700414]
[1762623800242,2.70158631,157.48,157.45,2.95]
[1762623805855,2.37809923,157.47,157.45,2.95]
[1762623810155,2.66,157.46,157.44,0.04870414]
[1762623810754,5.03809923,157.45,157.44,0.04870414]
[1762623811353,2.66,157.47,157.44,2.96870414]
[1762623811543,5.03809923,157.46,157.44,2.96870414]
[1762623815361,5.03809923,157.46,157.44,8.68710414]
[1762623815557,2.37809923,157.46,157.45,2.92]
[1762623822453,71.55868631,157.48,157.46,2.92]
[1762623822454,2.70158631,157.48,157.46,2.92]
[1762623822658,2.41968554,157.48,157.46,2.92]
[1762623822865,5.07968554,157.48,157.46,2.92]
[1762623823761,2.66,157.47,157.45,3.07]
[1762623824052,2.66,157.47,157.39,14.20178313]
[1762623824053,2.66,157.45,157.4,8.91140476]
[1762623824252,2.37809923,157.41,157.4,8.91140476]
[1762623826372,2.37809923,157.41,157.39,3.11618959]
[1762623826671,2.42536501,157.42,157.4,3.07]
[1762623827463,2.42536501,157.42,157.4,8.7897]
[1762623827666,0.04726578,157.42,157.4,8.7897]
[1762623828265,0.04726578,157.42,157.41,3.07]
[1762623830966,5.08536501,157.42,157.39,8.9996035]
[1762623831165,5.08536501,157.42,157.4,3.07]
[1762623835876,2.42536501,157.42,157.4,3.07]
[1762623838278,0.04726578,157.42,157.4,3.07]
[1762623840780,0.04726578,157.42,157.4,8.7898]
[1762623840980,0.04726578,157.42,157.41,3.07]
[1762623841983,2.66,157.47,157.43,3.08]
[1762623843077,2.70553028,157.47,157.44,3.08]
[1762623844983,8.42293028,157.47,157.44,3.08]
[1762623845481,2.66,157.46,157.44,3.08]
[1762623845783,2.66,157.45,157.43,0.04103244]
[1762623846185,2.66,157.43,157.39,3.08]
[1762623846678,2.66,157.42,157.39,3.08]
[1762623847383,2.70352249,157.42,157.39,3.12295384]
[1762623848083,0.04352249,157.42,157.39,3.12295384]
[1762623848376,0.04352249,157.42,157.4,3.08]
[1762623852983,0.04352249,157.42,157.4,8.7998]
[1762623853182,0.04352249,157.42,157.41,3.08]
[1762623854978,0.04352249,157.42,157.41,8.95772857]
[1762623855284,0.04352249,157.42,157.41,3.08]
[1762623856886,0.04352249,157.42,157.4,3.08]
[1762623857887,2.66,157.41,157.39,3.12295384]
[1762623858077,2.70352249,157.42,157.39,3.12295384]
[1762623859088,5.7196,157.41,157.39,3.12295384]
[1762623867693,8.3796,157.41,157.39,3.12295384]
[1762623868791,5.7196,157.41,157.39,0.04295384]
[1762623868998,2.66,157.4,157.39,0.04295384]
[1762623872102,2.69352249,157.42,157.39,2.97295384]
[1762623872604,5.7195,157.41,157.39,2.97295384]
[1762623873397,8.3695,157.41,157.39,2.97295384]
[1762623874100,2.65,157.4,157.39,0.04295384]
[1762623877803,5.7195,157.41,157.39,2.97295384]
[1762623878002,2.69352249,157.42,157.39,2.97295384]
[1762623879199,0.04352249,157.42,157.4,2.93]
[1762623880601,0.04352249,157.42,157.41,2.93]
[1762623889918,2.66,157.47,157.44,3.23]
[1762623890716,2.70467536,157.47,157.44,3.27245734]
[1762623890916,0.04467536,157.47,157.44,3.27245734]
[1762623892019,2.70467536,157.47,157.44,3.27245734]
[1762623892414,2.70467536,157.47,157.45,3.23]
[1762623892915,2.70467536,157.47,157.44,0.04245734]
[1762623893119,3.98467536,157.47,157.44,0.04245734]
[1762623893320,2.66,157.46,157.44,0.04245734]
[1762623894014,2.66,157.45,157.44,0.04245734]
[1762623896120,24.70467536,157.47,157.44,3.27245734]
[1762623897522,2.66,157.46,157.44,3.27245734]
[1762623900417,8.3779,157.46,157.44,0.04245734]
[1762623900619,2.66,157.45,157.44,0.04245734]
[1762623900825,6.37530123,157.45,157.44,0.04245734]
[1762623902434,5.03804019,157.45,157.44,0.04245734]
[1762623902731,2.66,157.43,157.38,3.22]
[1762623903036,2.37804019,157.4,157.38,3.22]
[1762623903829,5.08257867,157.41,157.38,3.22]
[1762623904826,5.08257867,157.41,157.38,5.7205]
[1762623905026,5.08257867,157.41,157.39,3.22]
[1762623909840,2.66,157.4,157.37,3.26088912]
[1762623910041,2.66,157.4,157.38,3.22]
[1762623914540,2.66,157.4,157.37,8.98178912]
[1762623915948,2.66,157.4,157.38,3.22]
[1762623921657,2.66,157.4,157.37,8.98178912]
[1762623922257,2.66,157.4,157.38,3.22]
[1762623922854,2.66,157.4,157.37,3.26088912]
[1762623923957,2.66,157.38,157.37,0.04088912]
[1762623924958,8.3806,157.38,157.37,0.04088912]
[1762623929263,2.37804019,157.39,157.37,0.04088912]
[1762623929264,2.66,157.39,157.37,3.26088912]
[1762623929463,5.03804019,157.38,157.37,0.04088912]
[1762623930962,2.66,157.37,157.32,3.22]
[1762623931165,2.66,157.35,157.32,3.22]
[1762623931866,2.70323881,157.35,157.32,3.26099841]
[1762623938365,2.70323881,157.35,157.32,0.04099841]
[1762623938366,2.67,157.34,157.32,0.04099841]
[1762623938869,2.67,157.34,157.32,3.18099841]
[1762623939971,8.3921,157.34,157.32,3.18099841]
[1762623940564,2.67,157.33,157.32,0.04099841]
[1762623940760,2.67,157.31,157.27,3.14]
[1762623940967,2.67,157.3,157.27,3.14]
[1762623941368,2.67,157.3,157.28,3.14]
[1762623941565,2.67,157.3,157.25,3.14]
[1762623941768,0.04560125,157.29,157.27,3.14]
[1762623941963,2.71560125,157.29,157.27,3.14]
[1762623943563,0.04560125,157.29,157.27,3.14]
[1762623943966,0.04560125,157.29,157.28,2.93]
[1762623944965,2.72,157.4,157.29,2.93]
[1762623945267,2.72,157.38,157.31,2.93]
[1762623945465,2.72,157.35,157.31,2.93]
[1762623946066,2.76758599,157.35,157.31,2.97629101]
[1762623946370,2.76758599,157.35,157.32,2.93]
[1762623948776,0.04758599,157.35,157.32,2.93]
[1762623950079,0.04758599,157.35,157.33,5.7224]
[1762623950871,0.04758599,157.35,157.33,8.6524]
[1762623953982,2.76758599,157.35,157.31,8.69909101]
[1762623954279,2.76758599,157.35,157.32,2.93]
[1762623954871,2.76758599,157.35,157.33,2.93]
[1762623955071,0.04758599,157.35,157.33,2.93]
[1762623957682,2.76758599,157.35,157.33,2.93]
[1762623958384,0.04758599,157.35,157.33,2.93]
[1762623962293,2.71,157.34,157.31,3.25629101]
[1762623962476,2.71,157.34,157.31,0.04629101]
[1762623962676,2.71,157.32,157.31,0.04629101]
[1762623963197,2.42562618,157.35,157.31,3.25629101]
[1762623963377,0.04758599,157.35,157.31,3.25629101]
[1762623963886,0.04758599,157.35,157.31,8.97929101]
[1762623964087,0.04758599,157.35,157.32,3.21]
[1762623965988,0.04758599,157.35,157.32,8.9327]
[1762623966184,0.04758599,157.35,157.33,3.21]
[1762623966787,2.75758599,157.35,157.33,3.21]
[1762623972287,2.71,157.34,157.31,3.25629101]
[1762623972486,2.75758599,157.35,157.31,3.25629101]
[1762623972785,8.47938599,157.35,157.31,3.25629101]
[1762623973782,2.75758599,157.35,157.32,3.21]
[1762623978593,0.04758599,157.35,157.32,8.9327]
[1762623978891,0.04758599,157.35,157.33,3.21]
[1762623982994,0.04758599,157.35,157.33,8.9324]
[1762623983195,0.04758599,157.35,157.34,3.21]
[1762623984789,2.75758599,157.35,157.33,3.21]
[1762623985187,2.75758599,157.35,157.31,0.04629101]
[1762623985497,2.75758599,157.35,157.31,3.25629101]
[1762623985989,2.71,157.33,157.31,0.04629101]
[1762623986186,2.71,157.33,157.26,7.81006405]
[1762623986395,2.71,157.33,157.26,11.02006405]
[1762623986594,2.71,157.33,157.26,3.21]
[1762623986986,2.71,157.3,157.27,3.21]
[1762623987302,2.75524362,157.3,157.27,3.2559289]
[1762623987492,0.04524362,157.3,157.27,3.2559289]
[1762623992394,2.76524362,157.3,157.27,3.2559289]
[1762623993299,2.72,157.29,157.27,3.2559289]
[1762623993598,2.72,157.29,157.27,0.0459289]
[1762623994797,8.4439,157.29,157.27,0.0459289]
[1762623995199,2.76524362,157.3,157.27,3.2759289]
[1762623995800,8.48884362,157.3,157.27,3.2759289]
[1762623997702,0.04524362,157.3,157.27,3.2759289]
[1762623998402,2.76524362,157.3,157.27,3.2759289]
[1762624000009,2.72,157.29,157.27,0.0459289]
[1762624000507,6.43823675,157.28,157.27,0.0459289]
[1762624000695,6.43823675,157.28,157.23,3.23]
[1762624000696,2.72,157.27,157.23,3.23]
[1762624001102,2.72,157.25,157.19,3.23]
[1762624001606,2.76596737,157.24,157.21,3.23]
[1762624002808,0.04596737,157.24,157.22,3.23]
[1762624003700,0.04596737,157.24,157.22,8.9564]
[1762624003903,0.04596737,157.24,157.23,3.17]
[1762624025932,8.10585408,157.31,157.26,3.2]
[1762624026232,2.76,157.34,157.26,3.2]
[1762624026537,69.02282841,157.37,157.31,3.2]
[1762624026538,68.24265408,157.37,157.31,3.2]
[1762624026931,2.8081993,157.36,157.33,3.2]
[1762624028738,2.76,157.34,157.32,0.04385979]
[1762624031341,0.0481993,157.36,157.32,3.24385979]
[1762624031842,2.8081993,157.36,157.32,3.24385979]
[1762624032535,2.76,157.35,157.32,3.24385979]
[1762624032841,2.76,157.34,157.32,3.24385979]
[1762624033542,2.76,157.34,157.32,0.04385979]
[1762624034343,8.4821,157.34,157.32,0.04385979]
[1762624034539,5.14265408,157.33,157.32,0.04385979]
[1762624035942,2.38265408,157.33,157.32,3.24385979]
[1762624036538,2.38265408,157.33,157.32,0.04385979]
[1762624037047,5.14265408,157.33,157.32,0.04385979]
[1762624039651,2.38265408,157.33,157.32,3.24385979]
[1762624039950,2.38265408,157.35,157.32,3.24385979]
[1762624040142,5.14265408,157.35,157.32,3.24385979]
[1762624041647,2.38265408,157.35,157.32,3.24385979]
[1762624042050,5.14265408,157.35,157.32,3.24385979]
[1762624042745,5.14265408,157.35,157.33,3.2]
[1762624044351,2.76,157.34,157.32,0.04385979]
[1762624045953,2.76,157.34,157.32,3.24385979]
[1762624047653,2.76,157.34,157.32,0.04385979]
[1762624049950,2.76,157.34,157.32,3.24385979]
[1762624050356,2.76,157.34,157.32,0.04385979]
[1762624050955,2.76,157.34,157.32,3.24385979]
[1762624051160,2.76,157.33,157.32,0.04385979]
[1762624053057,2.38265408,157.33,157.32,3.22385979]
[1762624053242,5.14265408,157.35,157.32,3.22385979]
[1762624053754,5.14265408,157.35,157.32,8.94655979]
[1762624053954,0.0481993,157.36,157.33,3.18]
[1762624054554,0.0481993,157.36,157.35,3.18]
[1762624064065,2.8081993,157.36,157.33,2.95]
[1762624064665,5.14265408,157.35,157.33,2.95]
[1762624065167,2.38265408,157.35,157.33,2.95]
[1762624065364,2.38265408,157.35,157.34,2.95]
[1762624066960,2.8081993,157.36,157.33,2.95]
[1762624068359,0.0481993,157.36,157.33,2.95]
[1762624068558,2.8081993,157.36,157.33,2.95]
[1762624069263,2.76,157.34,157.32,0.04385979]
[1762624069457,2.38265408,157.35,157.32,2.99385979]
[1762624069662,5.14265408,157.35,157.32,2.99385979]
[1762624070866,5.14265408,157.35,157.32,8.71655979]
[1762624071063,5.14265408,157.35,157.32,2.99385979]
[1762624071064,2.76,157.34,157.32,2.99385979]
[1762624071369,5.14265408,157.35,157.32,2.99385979]
[1762624073173,5.14265408,157.35,157.33,2.95]
[1762624074172,2.43085338,157.36,157.33,2.95]
[1762624074573,5.19085338,157.36,157.33,2.95]
[1762624074969,2.76,157.35,157.33,2.95]
[1762624077877,0.0481993,157.36,157.34,2.95]
[1762624078778,0.0481993,157.36,157.34,8.672]
[1762624078977,0.0481993,157.36,157.35,2.95]
[1762624082779,8.73842153,157.46,157.42,3.15]
[1762624083076,5.19265408,157.48,157.42,3.15]
[1762624083268,5.19265408,157.48,157.43,5.7186]
[1762624083581,5.19265408,157.48,157.44,3.15]
[1762624083873,2.42906043,157.48,157.45,3.15]
[1762624084089,0.04640635,157.48,157.45,3.15]
[1762624084672,2.38265408,157.52,157.47,3.15]
[1762624084871,5.19265408,157.52,157.47,3.15]
[1762624085367,63.08,157.55,157.47,3.15]
[1762624085368,2.81,157.49,157.47,3.15]
[1762624088883,2.81,157.49,157.46,3.19596399]
[1762624090284,2.81,157.49,157.46,0.04596399]
[1762624090487,2.81,157.48,157.46,0.04596399]
[1762624094889,8.5271,157.48,157.46,0.04596399]
[1762624095079,2.81,157.47,157.46,0.04596399]
[1762624098793,2.81,157.45,157.42,3.15]
[1762624099687,2.85575776,157.45,157.42,3.19345901]
[1762624102003,8.57385776,157.45,157.42,3.19345901]
[1762624103694,2.81,157.44,157.42,3.19345901]
[1762624105584,0.04575776,157.45,157.42,3.19345901]
[1762624105785,2.81,157.51,157.46,3.15]
[1762624106102,2.81,157.51,157.38,3.71220356]
[1762624106294,2.81,157.5,157.43,3.15]
[1762624106703,2.85772442,157.48,157.45,3.19460518]
[1762624106888,2.85737028,157.48,157.45,3.19196209]
[1762624108205,2.85737028,157.48,157.45,0.04196209]
[1762624109097,2.85737028,157.48,157.45,3.19196209]
[1762624109300,2.85737028,157.48,157.45,0.04196209]
[1762624109503,2.85737028,157.48,157.45,3.19196209]
[1762624110994,0.04737028,157.48,157.45,3.19196209]
[1762624111698,0.04737028,157.48,157.46,3.05]
[1762624113199,0.04737028,157.48,157.47,3.05]
[1762624114797,3.71220356,157.59,157.47,3.05]
[1762624114798,2.8,157.61,157.5,3.05]
[1762624114991,2.8,157.58,157.5,3.05]
[1762624115588,2.8,157.58,157.52,3.05]
[1762624115793,2.84007597,157.57,157.53,3.09054746]
[1762624117009,2.84007597,157.57,157.53,0.04054746]
[1762624118696,2.84007597,157.57,157.53,3.09054746]
[1762624118697,0.04007597,157.57,157.53,3.09054746]
[1762624120002,0.04007597,157.57,157.56,3.05]
[1762624120794,0.04007597,157.57,157.53,0.04054746]
[1762624120795,2.8,157.56,157.53,0.04054746]
[1762624121996,8.5145,157.55,157.53,0.04054746]
[1762624122203,2.8,157.54,157.53,0.04054746]
[1762624123204,8.5154,157.53,157.47,8.7672]
[1762624123400,8.5154,157.53,157.48,3.0]
[1762624123706,2.79,157.52,157.48,3.0]
[1762624124297,2.83351084,157.52,157.48,3.04701078]
[1762624127211,8.54911084,157.52,157.48,3.04701078]
[1762624127806,2.83351084,157.52,157.48,3.04701078]
[1762624130808,5.75911084,157.52,157.48,3.04701078]
[1762624131005,2.79,157.51,157.48,3.04701078]
[1762624131709,8.54911084,157.52,157.48,3.04701078]
[1762624133723,2.83351084,157.52,157.48,3.04701078]
[1762624135729,2.83351084,157.52,157.49,3.0]
[1762624137526,0.04351084,157.52,157.49,8.7164]
[1762624137831,0.04351084,157.52,157.49,3.0]
[1762624139931,0.04351084,157.52,157.49,8.7165]
[1762624140129,0.04351084,157.52,157.5,3.0]
[1762624141731,2.84351084,157.52,157.5,3.0]
[1762624141933,0.04351084,157.52,157.5,3.0]
[1762624146238,2.84351084,157.52,157.48,3.22701078]
[1762624146443,0.04351084,157.52,157.48,3.22701078]
[1762624146937,2.84351084,157.52,157.48,3.22701078]
[1762624148345,2.8,157.51,157.48,3.22701078]
[1762624148839,5.75911084,157.52,157.48,3.22701078]
[1762624149035,8.55911084,157.52,157.48,3.22701078]
[1762624149237,2.8,157.51,157.48,3.22701078]
[1762624150240,5.75911084,157.52,157.48,3.22701078]
[1762624150744,8.55911084,157.52,157.48,3.22701078]
[1762624151745,2.8,157.49,157.48,0.04701078]
[1762624157355,5.7162,157.5,157.48,0.04701078]
[1762624157356,8.5162,157.5,157.48,3.22701078]
[1762624157656,2.8,157.5,157.48,3.22701078]
[1762624158156,2.8,157.5,157.48,0.04701078]
[1762624158655,8.5163,157.5,157.48,0.04701078]
[1762624158857,2.8,157.49,157.48,0.04701078]
[1762624169569,0.04351084,157.52,157.48,3.22701078]
[1762624170159,2.84351084,157.52,157.5,3.18]
[1762624171766,2.84351084,157.52,157.49,5.7165]
[1762624171971,2.84351084,157.52,157.49,3.19]
[1762624174065,2.8,157.51,157.48,3.23701078]
[1762624179067,2.8,157.51,157.48,8.95391078]
[1762624179267,2.4186142,157.52,157.49,3.19]
[1762624179657,5.2186142,157.52,157.5,3.19]
[1762624180272,10.9341142,157.52,157.5,3.19]
[1762624180668,10.9341142,157.52,157.49,5.7165]
[1762624180970,10.9341142,157.52,157.49,8.9065]
[1762624185066,10.9341142,157.52,157.5,2.98]
[1762624185366,5.2186142,157.52,157.5,8.6962]
[1762624188174,5.2186142,157.52,157.5,2.98]
[1762624196682,2.8,157.51,157.5,2.98]
[1762624196978,5.2186142,157.52,157.5,2.98]
[1762624197882,5.2186142,157.52,157.5,8.6962]
[1762624199582,5.2186142,157.52,157.51,2.98]
[1762624201282,2.8,157.51,157.48,8.96361078]
[1762624201584,2.8,157.51,157.48,3.24701078]
[1762624202384,2.8,157.5,157.48,0.04701078]
[1762624202584,2.8,157.5,157.48,3.24701078]